[Event "FIDE World Cup O10-B 2024"]
[Site "Batumi"]
[Date "2024.06.29"]
[Round "7.1"]
[White "Yu, Zechen"]
[Black "Ling, Chenxuan"]
[Result "1/2-1/2"]
[ECO "B30"]
[WhiteElo "1889"]
[BlackElo "1868"]
[Annotator "NA RC"]
[PlyCount "130"]
[EventDate "2024.06.23"]
[EventType "swiss"]
[EventCountry "GEO"]
[SourceTitle "playchess.com"]
[Source "ChessBase"]
[SourceQuality "1"]
[TimeControl "5400+30"]

1. e4 {[%emt 0:00:04]} c5 {[%emt 0:00:06]} 2. Nf3 {[%emt 0:00:10]} Nc6 {[%emt 0:00:05]} 3. Bb5 {[%emt 0:00:07]} e6 {[%emt 0:00:06]} 4. Nc3 {[%emt 0:00:38]} Nge7 {[%emt 0:01:02]} 5. d4 {[%emt 0:00:07]} cxd4 {[%emt 0:01:08]} 6. Nxd4 {[%emt 0:00:22]} a6 {[%emt 0:00:07]} 7. Nxc6 {[%emt 0:02:02]} dxc6 {[%emt 0:01:32]} 8. Qxd8+ {[%emt 0:04:52]} Kxd8 {[%emt 0:00:07]} 9. Be2 {[%emt 0:01:45]} e5 {[%emt 0:04:46]} 10. Be3 {[%emt 0:05:12]} Be6 {[%emt 0:02:00]} 11. Bb6+ {[%emt 0:11:07]} Ke8 {[%emt 0:01:11]} 12. O-O-O {[%emt 0:02:22]} Ng6 {[%emt 0:00:41]} 13. g3 {[%emt 0:00:56]} Be7 {[%emt 0:00:12]} 14. Bh5 {[%emt 0:06:27]} Kf8 {[%emt 0:04:14]} 15. Kb1 {[%emt 0:12:23]} Ke8 $14 {[%emt 0:00:58]} 16. Ne2 {[%emt 0:07:44]} Bd8 {[%emt 0:04:24]} 17. Bc5 {[%emt 0:14:28]} Bc7 {[%emt 0:01:30]} 18. b3 {[%emt 0:03:14]} Rd8 {[%emt 0:01:43]} 19. Rxd8+ {[%emt 0:04:12]} Kxd8 {[%emt 0:00:09]} 20. Rf1 {[%emt 0:00:16]} f5 {[%emt 0:16:19]} 21. f4 {[%emt 0:01:48]} b6 {[%emt 0:09:53]} 22. Ba3 {[%emt 0:00:12]} exf4 {[%emt 0:03:48]} 23. Nd4 {[%emt 0:05:28]} Bd7 {[%emt 0:02:56]} 24. exf5 {[%emt 0:05:09]} c5 {[%emt 0:02:05]} 25. fxg6 {[%emt 0:02:27]} cxd4 {[%emt 0:00:09]} 26. gxf4 {[%emt 0:00:33]} hxg6 {[%emt 0:00:20]} 27. Bxg6 {[%emt 0:00:05]} Rxh2 {[%emt 0:00:10]} 28. Bb2 {[%emt 0:01:03]} Rh6 {[%emt 0:04:52]} 29. Bd3 {[%emt 0:01:16]} Rd6 {[%emt 0:04:38]} 30. Rh1 {[%emt 0:03:03]} b5 {[%emt 0:04:27]} 31. Rg1 {[%emt 0:02:09]} Rf6 {[%emt 0:02:01]} 32. Bxd4 {[%emt 0:01:10]} Rxf4 {[%emt 0:00:14]} 33. Bxg7 {[%emt 0:00:04]} Rg4 {[%emt 0:01:12]} 34. Bf6+ {[%emt 0:00:34]} Kc8 {[%emt 0:01:16]} 35. Rd1 {[%emt 0:01:48]} Bb6 {[%emt 0:00:53]} 36. Kb2 {[%emt 0:01:28]} Bd4+ {[%emt 0:03:25]} 37. Bxd4 {[%emt 0:00:05]} Rxd4 {[%emt 0:00:04]} 38. a4 {[%emt 0:01:27]} Kc7 {[%emt 0:01:28]} 39. axb5 {[%emt 0:01:43]} axb5 {[%emt 0:00:46]} 40. Kc3 {[%emt 0:00:00]} Rd6 {[%emt 0:00:17]} 41. Rg1 {[%emt 0:00:00]} Kb6 {[%emt 0:00:45]} 42. Rg5 {[%emt 0:00:00]} Bc6 {[%emt 0:00:42]} 43. Re5 {[%emt 0:00:13]} Rf6 {[%emt 0:00:31]} 44. Bf5 {[%emt 0:00:48]} Rd6 {[%emt 0:00:27]} 45. Kb4 {[%emt 0:00:41]} Rd5 {[%emt 0:01:31]} 46. Rxd5 {[%emt 0:01:08]} Bxd5 {[%emt 0:00:02]} 47. Bd3 {[%emt 0:00:27]} Bc6 {[%emt 0:00:04]} 48. Bg6 {[%emt 0:00:30]} Bd7 {[%emt 0:00:09]} 49. Be4 {[%emt 0:00:23]} Be8 {[%emt 0:00:04]} 50. Kc3 {[%emt 0:00:39]} Kc5 {[%emt 0:00:16]} 51. b4+ {[%emt 0:00:07]} Kb6 {[%emt 0:00:00]} 52. Kd4 {[%emt 0:00:08]} Bf7 {[%emt 0:00:09]} 53. Ke5 {[%emt 0:00:16]} Bc4 {[%emt 0:00:13]} 54. Kd6 {[%emt 0:00:05]} Bf7 {[%emt 0:00:07]} 55. Bd3 {[%emt 0:00:38]} Bh5 {[%emt 0:00:20]} 56. Bf5 {[%emt 0:00:15]} Bf7 {[%emt 0:00:06]} 57. Kd7 {[%emt 0:00:11]} Bh5 {[%emt 0:00:08]} 58. Be4 {[%emt 0:01:13]} Bg4+ {[%emt 0:00:07]} 59. Kd6 {[%emt 0:00:04]} Be2 {[%emt 0:00:07]} 60. Bd3 {[%emt 0:00:37]} Bf3 {[%emt 0:00:13]} 61. Ke5 {[%emt 0:00:19]} Bg4 {[%emt 0:00:15]} 62. Kf4 {[%emt 0:01:06]} Be6 {[%emt 0:00:05]} 63. Ke5 {[%emt 0:00:36]} Bg4 {[%emt 0:00:12]} 64. Kd5 {[%emt 0:00:04]} Bf3+ {[%emt 0:00:04]} 65. Kd6 {[%emt 0:00:05]} Bg4 {[%emt 0:00:09]} 1/2-1/2

[Event "FIDE World Cup O10-B 2024"]
[Site "Batumi"]
[Date "2024.06.29"]
[Round "7.2"]
[White "Zhauynbay, Alimzhan"]
[Black "Karthik, Anand T."]
[Result "1-0"]
[ECO "D02"]
[WhiteElo "1903"]
[BlackElo "2022"]
[Annotator "NA RC"]
[PlyCount "85"]
[EventDate "2024.06.23"]
[EventType "swiss"]
[EventCountry "GEO"]
[SourceTitle "playchess.com"]
[Source "ChessBase"]
[SourceQuality "1"]
[TimeControl "5400+30"]

1. d4 {[%emt 0:00:17]} d5 {[%emt 0:00:49]} 2. Nf3 {[%emt 0:00:23]} c5 {[%emt 0:00:06]} 3. g3 {[%emt 0:04:32]} cxd4 {[%emt 0:00:08]} 4. Nxd4 {[%emt 0:00:03]} f6 {[%emt 0:02:05]} 5. Bg2 {[%emt 0:03:03]} e5 {[%emt 0:00:07]} 6. Nb3 {[%emt 0:00:36] D02: 1 d4 d5 2 Nf3 sidelines, including 2...Nf6 3 g3 and 2...Nf6 3 Bf4.} Be6 {[%emt 0:02:18]} 7. O-O {[%emt 0:00:44]} Nc6 {[%emt 0:00:35]} 8. e3 {[%emt 0:04:54]} Qd7 {[%emt 0:04:28]} 9. Nc3 {[%emt 0:06:22]} O-O-O {[%emt 0:02:07]} 10. Qe2 {[%emt 0:03:42]} Bh3 {[%emt 0:05:13]} 11. Bxd5 {[%emt 0:09:45]} Bxf1 {[%emt 0:01:18]} 12. Qxf1 {[%emt 0:00:19]} Kb8 {[%emt 0:02:12]} 13. a3 {[%emt 0:07:41]} Bd6 {[%emt 0:02:48]} 14. e4 {[%emt 0:01:54]} Nge7 {[%emt 0:01:57]} 15. Be3 {[%emt 0:00:33]} Nxd5 {[%emt 0:00:39]} 16. exd5 {[%emt 0:02:16]} Ne7 {[%emt 0:01:05]} 17. Nb5 {[%emt 0:01:06]} Nxd5 {[%emt 0:06:57]} 18. Bxa7+ {[%emt 0:00:21]} Ka8 {[%emt 0:00:06] [#]} 19. c4 {[%emt 0:00:46]} ({White should play} 19. Rd1 $1 $16 {[%cal Rd1d5]} Nc7 20. Nxd6 Kxa7 21. Na5 (21. Nc5 Qxd6 22. Rxd6 Rxd6 $18) 21... Qxd6 22. Rxd6 Rxd6 23. Qe1 (23. Nc4 Rd7 $16)) 19... Nc7 {[%emt 0:00:51]} 20. Be3 $11 {[%emt 0:01:54]} ({But not} 20. Bb6 Qc6 21. c5 Qxb5 $11) (20. a4 $1 $14 {deserves consideration.} Bb4 21. Bc5 (21. Bb6 Ne6 $11) 21... Bxc5 22. Nxc5) 20... Na6 {[%emt 0:08:02]} 21. Rd1 {[%emt 0:02:36]} Qe7 {[%emt 0:01:43]} 22. Rc1 {[%emt 0:05:56]} Nc5 {[%emt 0:07:03]} 23. Na5 {[%emt 0:01:33]} Bc7 {[%emt 0:02:28]} 24. Nxc7+ {[%emt 0:04:03]} Qxc7 {[%emt 0:00:08]} 25. b4 {[%emt 0:00:26]} Nd3 {[%emt 0:02:16]} 26. Rc3 {[%emt 0:01:39]} Nb2 {[%emt 0:01:48]} 27. Rc1 {[%emt 0:01:30]} f5 {[%emt 0:01:48]} 28. Qe2 {[%emt 0:03:41]} Nd3 {[%emt 0:00:52]} 29. Rc3 {[%emt 0:00:25]} e4 {[%emt 0:00:58]} 30. c5 {[%emt 0:04:09]} f4 {[%emt 0:10:01]} 31. Bxf4 {[%emt 0:01:31]} Nxf4 {[%emt 0:00:14]} 32. gxf4 {[%emt 0:02:33]} Qxf4 {[%emt 0:00:41]} 33. c6 {[%emt 0:01:19]} Rd2 {[%emt 0:10:09]} 34. cxb7+ {[%emt 0:00:54]} Ka7 {[%emt 0:00:03]} 35. Qf1 {[%emt 0:07:20]} Qg4+ {[%emt 0:03:32]} 36. Rg3 {[%emt 0:00:53]} Qd7 {[%emt 0:01:44]} 37. Qc4 {[%emt 0:00:35]} Re8 {[%emt 0:09:05]} 38. Qc5+ {[%emt 0:03:21]} Kb8 {[%emt 0:00:12]} 39. b5 {[%emt 0:00:06]} Qc7 {[%emt 0:04:04]} 40. Qxc7+ {[%emt 0:00:37]} Kxc7 {[%emt 0:00:08]} 41. Rxg7+ {[%emt 0:00:05]} Rd7 {[%emt 0:00:03]} 42. Rxd7+ {[%emt 0:00:10]} Kxd7 {[%emt 0:00:09]} 43. Nc6 {[%emt 0:00:03]} 1-0

[Event "FIDE World Cup O10-B 2024"]
[Site "Batumi"]
[Date "2024.06.29"]
[Round "7.3"]
[White "Zabelin, Platon"]
[Black "Modith Aaroh Mutyalapati"]
[Result "1-0"]
[ECO "D13"]
[WhiteElo "1799"]
[BlackElo "1866"]
[Annotator "NA RC"]
[PlyCount "75"]
[EventDate "2024.06.23"]
[EventType "swiss"]
[EventCountry "GEO"]
[SourceTitle "playchess.com"]
[Source "ChessBase"]
[SourceQuality "1"]
[TimeControl "5400+30"]

1. d4 {[%emt 0:00:09]} d5 {[%emt 0:00:04]} 2. c4 {[%emt 0:00:08]} c6 {[%emt 0:00:01]} 3. cxd5 {[%emt 0:00:14]} cxd5 {[%emt 0:00:06]} 4. Nc3 {[%emt 0:00:06]} Nc6 {[%emt 0:00:03]} 5. Nf3 {[%emt 0:00:06]} Nf6 {[%emt 0:00:05]} 6. Bf4 {[%emt 0:00:03]} Bg4 {[%emt 0:00:05]} 7. Ne5 {[%emt 0:06:42]} e6 {[%emt 0:08:50]} 8. Qa4 {[%emt 0:03:20]} Qb6 {[%emt 0:01:29]} 9. Nxc6 {[%emt 0:13:30]} bxc6 {[%emt 0:02:45]} 10. e3 {[%emt 0:01:18]} Be7 {[%emt 0:01:00]} 11. Bd3 {[%emt 0:00:31]} O-O {[%emt 0:01:06]} 12. Qc2 {[%emt 0:00:12]} Bh5 {[%emt 0:21:19]} 13. O-O {[%emt 0:00:18]} Bg6 {[%emt 0:02:02]} 14. Bxg6 {[%emt 0:01:17]} hxg6 {[%emt 0:01:52]} 15. Na4 {[%emt 0:02:17]} Qb5 {[%emt 0:00:57]} 16. Rfc1 {[%emt 0:03:49]} Rac8 {[%emt 0:02:00]} 17. Rab1 {[%emt 0:02:48]} Nd7 {[%emt 0:03:33]} 18. b4 {[%emt 0:02:00]} g5 {[%emt 0:00:22]} 19. Bg3 {[%emt 0:01:20]} Nb6 {[%emt 0:01:24]} 20. Nc5 {[%emt 0:00:41]} Nc4 {[%emt 0:04:26]} 21. a4 {[%emt 0:00:24]} Qb6 {[%emt 0:00:07]} 22. Nd7 {[%emt 0:00:42]} Qb7 {[%emt 0:00:07]} 23. Nxf8 {[%emt 0:00:05]} Rxf8 {[%emt 0:00:05]} 24. Qc3 {[%emt 0:00:44]} f5 {[%emt 0:00:05]} 25. Be5 {[%emt 0:00:15]} f4 {[%emt 0:01:32]} 26. exf4 {[%emt 0:00:31]} gxf4 {[%emt 0:00:01]} 27. Qh3 {[%emt 0:13:02]} Rf5 {[%emt 0:00:17]} 28. Qg4 {[%emt 0:01:09]} Bg5 {[%emt 0:06:36]} 29. h4 {[%emt 0:01:47]} Bh6 {[%emt 0:00:12]} 30. Rd1 {[%emt 0:14:20]} Qf7 {[%emt 0:15:03]} 31. Rd3 {[%emt 0:06:54]} Qb7 {[%emt 0:03:48]} 32. Qg6 {[%emt 0:03:47]} Qe7 {[%emt 0:03:51]} 33. Re1 {[%emt 0:03:57]} Qxb4 {[%emt 0:02:23]} 34. Qxe6+ {[%emt 0:00:16]} Rf7 {[%emt 0:00:01]} 35. Bc7 {[%emt 0:02:32]} Ne3 {[%emt 0:00:51]} 36. Rc1 {[%emt 0:01:01]} Nxg2 {[%emt 0:01:54]} 37. Kxg2 {[%emt 0:00:58]} f3+ {[%emt 0:00:11]} 38. Rxf3 {[%emt 0:00:03]} 1-0

[Event "FIDE World Cup O10-B 2024"]
[Site "Batumi"]
[Date "2024.06.29"]
[Round "7.4"]
[White "Shogdzhiev, Roman"]
[Black "AlJamaat, Khaled"]
[Result "0-1"]
[ECO "A00"]
[WhiteElo "2060"]
[BlackElo "1644"]
[Annotator "NA RC"]
[PlyCount "160"]
[EventDate "2024.06.23"]
[EventType "swiss"]
[EventCountry "GEO"]
[SourceTitle "playchess.com"]
[Source "ChessBase"]
[SourceQuality "1"]
[TimeControl "5400+30"]

1. g4 {[%emt 0:00:27]} d5 {[%emt 0:01:01]} 2. h3 {[%emt 0:00:05]} e5 {[%emt 0:00:36]} 3. d3 {[%emt 0:01:01]} c6 {[%emt 0:02:00]} 4. Bg2 {[%emt 0:00:20]} Be6 {[%emt 0:01:03]} 5. Nf3 {[%emt 0:00:37]} f6 {[%emt 0:00:55]} 6. c3 {[%emt 0:00:38] A00: Irregular Openings.} Nd7 {[%emt 0:00:12]} 7. Qc2 {[%emt 0:00:07]} Qc7 {[%emt 0:00:25]} 8. Nbd2 {[%emt 0:00:57]} Bc5 {[%emt 0:01:06]} 9. Nf1 {[%emt 0:00:38]} Ne7 {[%emt 0:00:41]} 10. Ng3 {[%emt 0:01:50]} g6 {[%emt 0:06:56]} 11. e3 {[%emt 0:08:16]} O-O-O {[%emt 0:01:45]} 12. Bd2 {[%emt 0:02:51]} Bd6 {[%emt 0:00:38]} 13. O-O-O {[%emt 0:06:18]} f5 {[%emt 0:07:18]} 14. Kb1 {[%emt 0:12:58]} fxg4 {[%emt 0:02:36]} 15. Ng5 {[%emt 0:00:01]} Bg8 {[%emt 0:03:05]} 16. hxg4 {[%emt 0:00:36]} h6 {[%emt 0:00:17]} 17. Ne2 {[%emt 0:12:43]} Nc5 {[%emt 0:11:01]} (17... Kb8 $11) 18. Rh4 {[%emt 0:06:41]} Ne6 {[%emt 0:01:48]} 19. Nxe6 {[%emt 0:00:20]} Bxe6 {[%emt 0:00:06]} 20. Rdh1 {[%emt 0:00:03]} g5 {[%emt 0:05:13]} 21. Rxh6 {[%emt 0:00:04]} Rxh6 {[%emt 0:00:07]} 22. Rxh6 {[%emt 0:00:04]} Bxg4 {[%emt 0:00:10]} 23. f3 $1 {[%emt 0:01:42]} Bd7 $14 {[%emt 0:00:39]} 24. Qa4 {[%emt 0:06:22]} Kb8 {[%emt 0:03:27]} 25. Bh3 {[%emt 0:02:08]} b5 {[%emt 0:18:26]} 26. Qd1 {[%emt 0:04:01]} Bxh3 {[%emt 0:03:54]} 27. Rxh3 {[%emt 0:00:01]} Qd7 {[%emt 0:00:32]} 28. Rg3 {[%emt 0:03:41]} Rg8 {[%emt 0:04:19]} 29. e4 {[%emt 0:01:21]} g4 {[%emt 0:00:48]} 30. Qg1 {[%emt 0:00:09]} Bc7 {[%emt 0:01:24]} 31. Rxg4 {[%emt 0:00:12]} Rf8 {[%emt 0:00:07]} 32. Rg3 {[%emt 0:04:26]} dxe4 {[%emt 0:02:38]} 33. fxe4 {[%emt 0:00:04]} Bb6 {[%emt 0:01:07]} 34. Qh1 {[%emt 0:00:54]} Rf2 {[%emt 0:01:10]} 35. Qd1 {[%emt 0:01:47]} Qe8 {[%emt 0:05:45]} 36. Be3 {[%emt 0:04:50]} Bxe3 {[%emt 0:00:29]} 37. Rxe3 {[%emt 0:00:02]} Qh5 {[%emt 0:00:33]} 38. Qe1 {[%emt 0:02:42]} Qh2 {[%emt 0:00:45]} 39. c4 {[%emt 0:12:22]} Qg2 {[%emt 0:02:01]} 40. Kc2 {[%emt 0:02:09]} Ng6 {[%emt 0:02:41]} 41. cxb5 {[%emt 0:00:38]} Nf4 {[%emt 0:01:42]} 42. Kd2 {[%emt 0:00:16]} cxb5 {[%emt 0:00:27]} 43. Qd1 {[%emt 0:00:05]} a6 {[%emt 0:01:43]} 44. Qe1 {[%emt 0:00:37]} b4 {[%emt 0:05:10]} 45. Qd1 {[%emt 0:00:19]} a5 {[%emt 0:00:17]} 46. Qe1 {[%emt 0:00:12]} Ne6 {[%emt 0:00:34]} 47. Qd1 {[%emt 0:03:27]} Nd4 {[%emt 0:00:13]} 48. Qe1 {[%emt 0:00:32]} Rxe2+ {[%emt 0:01:40]} 49. Rxe2 {[%emt 0:00:07]} Nf3+ {[%emt 0:00:04]} 50. Kd1 {[%emt 0:01:16]} Nxe1 {[%emt 0:00:07]} 51. Rxg2 {[%emt 0:00:02]} Nxg2 {[%emt 0:00:10]} 52. a3 {[%emt 0:00:08]} bxa3 {[%emt 0:00:25]} 53. bxa3 {[%emt 0:00:02]} Kc7 {[%emt 0:00:09]} 54. Kc2 {[%emt 0:00:06]} Kc6 {[%emt 0:00:04]} 55. Kb3 {[%emt 0:00:07]} Nf4 {[%emt 0:00:12]} 56. Ka4 {[%emt 0:00:13]} Kb6 {[%emt 0:00:12]} 57. Kb3 {[%emt 0:00:18]} Nxd3 {[%emt 0:00:10]} 58. Kc4 {[%emt 0:00:04]} Nf4 {[%emt 0:00:08]} 59. Kb3 {[%emt 0:00:03]} Kb5 {[%emt 0:00:06]} 60. a4+ {[%emt 0:00:05]} Kc5 {[%emt 0:00:03]} 61. Kc3 {[%emt 0:00:05]} Ne6 {[%emt 0:00:08]} 62. Kd3 {[%emt 0:00:08]} Kb4 {[%emt 0:00:03]} 63. Ke3 {[%emt 0:00:06]} Kxa4 {[%emt 0:00:05]} 64. Kf3 {[%emt 0:00:05]} Nc5 {[%emt 0:00:04]} 65. Kg4 {[%emt 0:00:04]} Kb3 {[%emt 0:00:09]} 66. Kf5 {[%emt 0:00:05]} a4 {[%emt 0:00:05]} 67. Kxe5 {[%emt 0:00:06]} a3 {[%emt 0:00:07]} 68. Kd5 {[%emt 0:00:02]} Nxe4 {[%emt 0:00:07]} 69. Kd4 {[%emt 0:00:05]} a2 {[%emt 0:00:11]} 70. Kd5 {[%emt 0:00:04]} a1=Q {[%emt 0:00:07]} 71. Ke6 {[%emt 0:00:06]} Qf6+ {[%emt 0:00:06]} 72. Kd5 {[%emt 0:00:05]} Kc3 {[%emt 0:00:16]} 73. Kxe4 {[%emt 0:00:07]} Qd6 {[%emt 0:00:07]} 74. Ke3 {[%emt 0:00:05]} Qe5+ {[%emt 0:00:04]} 75. Kf3 {[%emt 0:00:10]} Kd3 {[%emt 0:00:06]} 76. Kg4 {[%emt 0:00:05]} Qf6 {[%emt 0:00:06]} 77. Kg3 {[%emt 0:00:07]} Ke3 {[%emt 0:00:06]} 78. Kg4 {[%emt 0:00:05]} Qg6+ {[%emt 0:00:06]} 79. Kh4 {[%emt 0:00:04]} Kf4 {[%emt 0:00:10]} 80. Kh3 {[%emt 0:00:06]} Qg3# {[%emt 0:00:05]} 0-1

[Event "FIDE World Cup O10-B 2024"]
[Site "Batumi"]
[Date "2024.06.29"]
[Round "7.5"]
[White "Rahul Ramakrishnan"]
[Black "Akramov, Khasan"]
[Result "1-0"]
[ECO "D93"]
[WhiteElo "1838"]
[BlackElo "1718"]
[Annotator "NA RC"]
[PlyCount "69"]
[EventDate "2024.06.23"]
[EventType "swiss"]
[EventCountry "GEO"]
[SourceTitle "playchess.com"]
[Source "ChessBase"]
[SourceQuality "1"]
[TimeControl "5400+30"]

1. d4 {[%emt 0:00:17]} Nf6 {[%emt 0:00:05]} 2. c4 {[%emt 0:00:20]} g6 {[%emt 0:00:12]} 3. Nc3 {[%emt 0:00:08]} d5 {[%emt 0:00:05]} 4. Bf4 {[%emt 0:00:51]} c6 {[%emt 0:03:05]} 5. e3 {[%emt 0:01:54]} Bg7 {[%emt 0:00:14]} 6. Nf3 {[%emt 0:00:40]} O-O {[%emt 0:00:07]} 7. Bd3 {[%emt 0:01:22]} dxc4 {[%emt 0:08:06]} 8. Bxc4 {[%emt 0:00:17]} Nd5 {[%emt 0:00:19]} 9. Nxd5 {[%emt 0:03:42]} cxd5 {[%emt 0:00:05]} 10. Be2 {[%emt 0:04:23]} Nc6 {[%emt 0:00:16]} 11. O-O {[%emt 0:01:08]} Qb6 {[%emt 0:02:17]} 12. Qd2 {[%emt 0:07:55]} Bf5 {[%emt 0:00:52]} 13. Rac1 {[%emt 0:04:06]} Rfc8 {[%emt 0:00:53]} 14. Rc5 {[%emt 0:07:12]} e5 {[%emt 0:14:23]} 15. Rb5 {[%emt 0:03:36]} exf4 {[%emt 0:00:16]} 16. Rxb6 {[%emt 0:00:07]} axb6 {[%emt 0:00:09]} 17. exf4 {[%emt 0:18:09]} Rxa2 {[%emt 0:00:14]} 18. Rc1 {[%emt 0:05:51]} Re8 {[%emt 0:01:44]} 19. Bb5 {[%emt 0:05:24]} Bd7 {[%emt 0:06:11]} 20. Bxc6 {[%emt 0:00:41]} Bxc6 {[%emt 0:08:58]} 21. Ne5 {[%emt 0:01:44]} Rea8 {[%emt 0:01:30]} 22. h3 {[%emt 0:03:26]} Be8 {[%emt 0:00:40]} 23. Qb4 {[%emt 0:01:37]} f6 {[%emt 0:20:24]} 24. Qe7 {[%emt 0:05:27]} Ra1 {[%emt 0:02:48]} 25. Rxa1 {[%emt 0:02:40]} Rxa1+ {[%emt 0:00:06]} 26. Kh2 {[%emt 0:00:03]} Ra8 {[%emt 0:00:11]} 27. Qe6+ {[%emt 0:00:36]} Kh8 {[%emt 0:00:06]} 28. Nf7+ {[%emt 0:00:24]} Bxf7 {[%emt 0:00:06]} 29. Qxf7 {[%emt 0:00:02]} Rd8 {[%emt 0:03:02]} 30. Qxb7 {[%emt 0:00:07]} f5 {[%emt 0:00:09]} 31. Qxb6 {[%emt 0:00:08]} Re8 {[%emt 0:01:27]} 32. b4 {[%emt 0:00:29]} Rf8 {[%emt 0:02:32]} 33. b5 {[%emt 0:00:08]} Rg8 {[%emt 0:01:00]} 34. Qc5 {[%emt 0:00:24]} Ra8 {[%emt 0:00:17]} 35. b6 {[%emt 0:00:12]} 1-0

[Event "FIDE World Cup O10-B 2024"]
[Site "Batumi"]
[Date "2024.06.29"]
[Round "7.6"]
[White "Shen, Houlin"]
[Black "Lazarev, Egor"]
[Result "1/2-1/2"]
[ECO "A87"]
[WhiteElo "1583"]
[BlackElo "1683"]
[Annotator "NA RC"]
[PlyCount "58"]
[EventDate "2024.06.23"]
[EventType "swiss"]
[EventCountry "GEO"]
[SourceTitle "playchess.com"]
[Source "ChessBase"]
[SourceQuality "1"]
[TimeControl "5400+30"]

1. Nf3 {[%emt 0:00:01]} f5 {[%emt 0:00:11]} 2. d4 {[%emt 0:03:45]} Nf6 {[%emt 0:00:07]} 3. g3 {[%emt 0:02:02]} g6 {[%emt 0:00:03]} 4. Bg2 {[%emt 0:00:31]} Bg7 {[%emt 0:00:10]} 5. O-O {[%emt 0:01:49]} O-O {[%emt 0:00:12]} 6. c4 {[%emt 0:00:47]} d6 {[%emt 0:00:03]} 7. Nc3 {[%emt 0:00:27]} Qe8 {[%emt 0:00:21]} 8. d5 {[%emt 0:02:37]} a5 {[%emt 0:00:07]} 9. Nd4 {[%emt 0:01:34]} Na6 {[%emt 0:00:07]} 10. e4 {[%emt 0:02:26]} fxe4 {[%emt 0:00:22]} 11. Nxe4 {[%emt 0:00:59]} Nxe4 {[%emt 0:01:35]} 12. Bxe4 {[%emt 0:00:55]} Nc5 {[%emt 0:10:13]} 13. Bg2 {[%emt 0:03:44]} Bd7 {[%emt 0:00:06]} 14. Be3 {[%emt 0:10:29]} Qf7 {[%emt 0:10:06]} 15. Qd2 {[%emt 0:04:44]} b6 {[%emt 0:06:45]} 16. Rae1 {[%emt 0:08:46]} Rac8 {[%emt 0:15:07]} 17. b3 {[%emt 0:03:51]} Rfe8 {[%emt 0:53:25]} 18. Ne6 {[%emt 0:50:03]} Nxe6 {[%emt 0:00:00]} 19. dxe6 {[%emt 0:00:00]} Bxe6 {[%emt 0:00:00]} 20. Bxb6 {[%emt 0:00:00]} cxb6 {[%emt 0:00:00]} 21. Rxe6 {[%emt 0:00:00]} Kh8 {[%emt 0:00:00]} 22. Bd5 {[%emt 0:00:00]} Qf8 {[%emt 0:00:00]} 23. Qe3 {[%emt 0:00:00]} Rb8 {[%emt 0:00:00]} 24. a4 {[%emt 0:00:00]} Bf6 {[%emt 0:00:00]} 25. Qe4 {[%emt 0:00:00]} Qg7 {[%emt 0:00:00]} 26. Kg2 {[%emt 0:00:00]} Rf8 {[%emt 0:00:00]} 27. f4 {[%emt 0:00:00]} g5 {[%emt 0:00:00]} 28. fxg5 {[%emt 0:00:00]} Bxg5 {[%emt 0:00:00]} 29. Qe2 {[%emt 0:00:00]} Rxf1 {[%emt 0:00:00]} 1/2-1/2